bitfinex-derivatives/quotes_ETHF0:USTF0_20240829
["timestamp","ask_amount","ask_price","bid_price","bid_amount"]
[1724938255625,0.38916,2569.0,2568.5,0.38922]
[1724938255824,0.00584294,2569.1,2568.4,0.4571]
[1724938255825,0.38919,2568.8,2568.4,0.4571]
[1724938256028,0.38919,2568.8,2568.3,41.62725]
[1724938256029,0.38924,2568.5,2568.3,40.8]
[1724938256328,0.38922,2568.6,2568.1,0.38929]
[1724938256531,0.38923,2568.5,2568.0,0.3893]
[1724938256716,0.28162746,2568.5,2567.9,4.3501]
[1724938256919,4.05988,2568.9,2568.3,0.38925]
[1724938257117,0.38922,2568.6,2568.1,0.38929]
[1724938257318,4.80163848,2568.7,2568.1,0.38929]
[1724938257513,4.41242848,2568.8,2568.2,0.38927]
[1724938257717,0.38919,2568.8,2568.3,0.38925]
[1724938258014,0.38919,2568.8,2568.2,0.38927]
[1724938258015,0.3892,2568.7,2568.2,0.38927]
[1724938258214,0.38924,2568.5,2568.0,0.3893]
[1724938258417,0.38925,2568.4,2567.9,0.38931]
[1724938258617,0.4594,2568.3,2568.0,0.3893]
[1724938258830,0.4594,2568.3,2567.9,0.38931]
[1724938259221,0.4594,2568.3,2568.0,0.3893]
[1724938259422,0.38924,2568.5,2568.0,0.3893]
[1724938259724,0.86074,2568.5,2568.0,0.38931]
[1724938260230,4.70786642,2568.4,2568.0,0.3893]
[1724938260416,0.4715,2568.5,2568.1,0.38929]
[1724938260620,0.4715,2568.5,2567.8,3.2078]
[1724938260817,3.54512986,2569.7,2568.2,5.4632]
[1724938260818,0.00584294,2569.1,2568.2,5.4632]
[1724938261046,0.00584294,2569.1,2568.9,0.38916]
[1724938261227,0.00584294,2569.1,2568.8,0.38918]
[1724938261424,0.00584294,2569.1,2568.4,3.2078]
[1724938261731,4.26360046,2569.0,2568.4,3.2078]
[1724938261919,0.00584294,2569.1,2568.9,0.38916]
[1724938262120,0.00584294,2569.1,2569.0,0.38915]
[1724938262626,0.00584294,2569.1,2569.0,3.8928]
[1724938262832,0.00584294,2569.1,2568.7,3.2078]
[1724938263033,0.00584294,2569.1,2568.7,0.38919]
[1724938263430,0.00584294,2569.1,2568.6,4.469]
[1724938263722,0.00584294,2569.1,2568.9,0.38916]
[1724938263922,0.00584294,2569.1,2568.8,0.38918]
[1724938264125,0.00584294,2569.1,2568.7,3.2078]
[1724938264438,0.39498294,2569.1,2568.7,3.597]
[1724938264630,0.38916,2569.0,2568.7,3.2078]
[1724938264830,0.00584294,2569.1,2568.7,3.597]
[1724938265025,0.00584294,2569.1,2568.7,3.2078]
[1724938265335,0.3892,2568.7,2568.4,3.2078]
[1724938265627,5.75121729,2569.0,2568.6,0.38921]
[1724938265835,5.36204729,2569.0,2568.7,0.3892]
[1724938266034,0.00584294,2569.1,2568.8,0.38918]
[1724938266221,0.00584294,2569.1,2568.6,0.4726]
[1724938266535,0.00584294,2569.1,2568.8,0.38917]
[1724938267035,0.39499294,2569.1,2568.7,0.38919]
[1724938267232,0.38916,2569.0,2568.6,0.86181]
[1724938267624,0.38916,2569.0,2568.4,3.6581]
[1724938267625,0.3892,2568.7,2568.4,3.2078]
[1724938267938,0.38919,2568.8,2568.4,3.59704]
[1724938268134,5.14688515,2568.9,2568.5,0.38922]
[1724938268331,5.14688515,2568.9,2568.4,3.2078]
[1724938268332,4.30590515,2568.9,2568.4,3.2078]
[1724938268637,0.39498294,2569.1,2568.7,0.38919]
[1724938268834,0.39498294,2569.1,2568.5,0.4303]
[1724938269030,0.38916,2569.0,2568.6,0.38921]
[1724938269233,4.84288512,2569.0,2568.6,0.38921]
[1724938269430,4.45372512,2569.0,2568.4,3.2078]
[1724938269632,0.4656,2568.9,2568.4,3.2078]
[1724938269827,0.38927,2568.3,2568.0,0.86344098]
[1724938270134,0.97304,2568.6,2567.8,3.2078]
[1724938270135,0.38932,2567.9,2567.8,3.2078]
[1724938270432,9.04996821,2568.2,2567.7,0.00584294]
[1724938270433,0.9226,2568.2,2567.7,0.00584294]
[1724938270641,0.9226,2568.2,2567.8,0.38934]
[1724938270836,4.71056188,2568.1,2567.8,0.38934]
[1724938271031,0.38931,2568.0,2567.7,0.39519294]
[1724938271236,4.32126188,2568.1,2567.7,0.00584294]
[1724938271434,4.32126188,2568.1,2567.8,0.38933]
[1724938271625,4.32126188,2568.1,2567.7,0.00584294]
[1724938272132,0.38931,2568.0,2567.7,0.39519294]
[1724938272733,0.38931,2568.0,2567.7,0.00584294]
[1724938272927,4.71056188,2568.1,2567.7,0.00584294]
[1724938273129,4.71055188,2568.1,2567.7,0.00584294]
[1724938273332,4.71055188,2568.1,2567.7,0.39518294]
[1724938273333,4.32126188,2568.1,2567.7,0.39518294]
[1724938273536,4.71056188,2568.1,2567.8,0.38933]
[1724938273734,4.71056188,2568.1,2567.7,0.39519294]
[1724938273735,0.38931,2568.0,2567.7,0.39519294]
[1724938273935,4.71056188,2568.1,2567.7,0.39519294]
[1724938274344,4.71056188,2568.1,2567.8,0.38933]
[1724938274842,4.71056188,2568.1,2567.7,0.39518294]
[1724938274843,0.38931,2568.0,2567.7,0.39518294]
[1724938275230,0.38934,2567.8,2567.7,0.00584294]
[1724938275636,4.16311927,2567.8,2567.7,0.00584294]
[1724938275831,0.38934,2567.8,2567.7,0.00584294]
[1724938276139,0.38932,2568.0,2567.7,0.39519294]
[1724938276839,0.38933,2567.9,2567.7,0.00584294]
[1724938277040,4.18106,2568.1,2567.7,0.00584294]
[1724938277340,4.52105268,2568.0,2567.7,0.00584294]
[1724938277540,0.4111,2567.9,2567.7,0.00584294]
[1724938277735,0.80043,2567.9,2567.7,0.00584294]
[1724938278043,2.53515969,2569.0,2568.7,0.3892]
[1724938278237,0.40674294,2569.1,2568.8,0.38917]
[1724938278541,0.40674294,2569.1,2568.6,0.3892]
[1724938278847,0.40674294,2569.1,2568.6,0.38921]
[1724938278848,0.38917,2568.9,2568.6,0.38921]
[1724938279038,4.6202896,2569.0,2568.6,0.38921]
[1724938279544,4.2311296,2569.0,2568.3,4.4658]
[1724938279740,4.2311296,2569.0,2568.7,0.38919]
[1724938279943,4.6202796,2569.0,2568.6,0.3892]
[1724938280143,4.6202796,2569.0,2568.7,0.3892]
[1724938280338,4.2311296,2569.0,2568.7,0.3892]
[1724938280531,4.2311296,2569.0,2568.6,0.3892]
[1724938280532,4.6202896,2569.0,2568.6,0.3892]
[1724938280733,4.2311296,2569.0,2568.7,0.3892]
[1724938281040,4.6202796,2569.0,2568.6,0.38921]
[1724938281344,4.2311296,2569.0,2568.7,0.3892]
[1724938281541,4.6202896,2569.0,2568.6,0.38921]
[1724938281737,4.2311296,2569.0,2568.3,4.4658]
[1724938281936,0.38919,2568.8,2568.3,4.0359]
[1724938282137,0.38919,2568.8,2568.4,0.80237725]
[1724938282340,0.97293,2568.9,2568.3,3.2078]
[1724938282545,4.90613577,2568.7,2568.3,3.2078]
[1724938282740,0.38921,2568.7,2568.4,0.38923]
[1724938282941,0.38921,2568.7,2568.3,3.59705]
[1724938283131,0.40674294,2569.1,2568.3,3.2078]
[1724938283337,0.00584294,2569.1,2569.0,0.38915]
[1724938283747,0.00584294,2569.1,2569.0,4.28195]
[1724938284143,0.00584294,2569.1,2569.0,14.33857442]
[1724938284335,3.6338,2570.1,2569.4,0.97273]
[1724938284536,3.6338,2570.1,2569.9,0.389]
[1724938284839,3.2078,2570.1,2569.9,0.389]
[1724938285040,3.2078,2570.1,2569.5,3.2078]
[1724938285041,7.099,2570.1,2569.5,3.2078]
[1724938285238,4.51366342,2570.0,2569.6,0.38905]
[1724938285551,0.38902,2569.9,2569.6,0.38905]
[1724938285952,4.12465342,2570.0,2569.5,0.00584294]
[1724938285953,3.2078,2569.8,2569.5,0.00584294]
[1724938286248,0.00584294,2570.1,2569.5,0.00584294]
[1724938286249,0.8483,2569.9,2569.5,0.00584294]
[1724938286544,0.78676,2569.7,2569.5,0.00584294]
[1724938286754,0.3977,2569.7,2569.5,0.39491294]
[1724938286944,0.38906,2569.6,2569.5,0.00584294]
[1724938287145,4.44643215,2569.6,2569.5,0.00584294]
[1724938287350,0.38906,2569.6,2569.5,0.00584294]
[1724938287846,0.78675,2569.7,2569.5,0.00584294]
[1724938288047,0.3977,2569.7,2569.5,0.00584294]
[1724938288254,0.78675,2569.7,2569.5,0.00584294]
[1724938288549,0.38906,2569.6,2569.5,0.00584294]
[1724938288938,0.3977,2569.7,2569.5,0.00584294]
[1724938289140,0.38904,2569.8,2569.5,0.39491294]
[1724938289340,0.97259,2569.8,2569.5,0.00584294]
[1724938289648,4.86531052,2569.6,2569.5,0.00584294]
[1724938289850,0.38906,2569.6,2569.5,0.00584294]
[1724938290550,3.6338,2569.9,2569.6,0.38906]
[1724938290743,0.38904,2569.8,2569.6,0.38906]
[1724938290943,3.6338,2569.9,2569.5,0.00584294]
[1724938291140,0.38905,2569.7,2569.5,0.39491294]
[1724938291541,0.38906,2569.6,2569.5,0.00584294]
[1724938291741,4.31169214,2569.8,2569.6,0.38906]
[1724938291742,4.70073214,2569.8,2569.6,0.38906]
[1724938291947,0.38905,2569.7,2569.5,0.39491294]
[1724938292249,0.38906,2569.6,2569.5,0.00584294]
[1724938292754,0.97261,2569.8,2569.5,0.00584294]
[1724938292755,0.38906,2569.7,2569.5,0.00584294]
[1724938292954,0.38906,2569.6,2569.5,0.00584294]
[1724938293344,4.15287504,2569.7,2569.5,0.00584294]
[1724938293542,3.2078,2569.9,2569.8,0.38903]
[1724938294252,0.00584294,2570.1,2569.8,0.38903]
[1724938294253,0.00584294,2570.1,2570.0,1.36151]
[1724938294453,0.38893,2570.5,2570.0,3.2078]
[1724938294657,0.81002,2570.6,2570.0,7.0982]
[1724938294957,0.418,2570.8,2570.0,3.2078]
[1724938295157,0.38886,2571.0,2570.7,0.3889]
[1724938295350,3.63474294,2571.1,2570.3,3.6186]
[1724938295542,3.63474294,2571.1,2570.4,40.8]
[1724938295745,4.02358294,2571.1,2570.8,0.38888]
[1724938295945,4.02358294,2571.1,2570.8,0.38887]
[1724938296251,3.63474294,2571.1,2570.9,0.38887]
[1724938296452,3.63474294,2571.1,2570.4,40.8]
[1724938296453,4.02358294,2571.1,2570.4,40.8]
[1724938296653,3.63474294,2571.1,2570.9,0.38886]
[1724938296853,4.02358294,2571.1,2570.8,0.38887]
[1724938297160,3.63474294,2571.1,2570.9,0.38887]
[1724938297356,0.38887,2570.9,2570.6,0.3889]
[1724938297661,3.63474294,2571.1,2570.4,40.8]
[1724938297662,4.42541264,2571.0,2570.4,40.8]
[1724938297853,4.42541264,2571.0,2570.7,0.38889]
[1724938298052,4.81427264,2571.0,2570.7,0.38889]
[1724938298353,4.42541264,2571.0,2570.0,7.6978]
[1724938298553,1.36767,2570.9,2570.4,0.38894]
[1724938298849,0.3955,2570.9,2570.1,40.8]
[1724938299054,0.3955,2570.9,2570.3,0.38895]
[1724938299055,0.38892,2570.6,2570.3,0.38895]
[1724938299451,0.42694294,2571.1,2570.7,0.3889]
[1724938299452,0.38886,2571.0,2570.7,0.3889]
[1724938299756,0.38886,2571.0,2570.4,7.0982]
[1724938299757,0.423,2571.0,2570.8,0.38888]
[1724938300153,0.81186,2571.0,2570.7,0.38889]
[1724938300660,0.81186,2571.0,2570.8,0.38888]
[1724938300856,0.423,2571.0,2570.8,0.38888]
[1724938301047,3.60248294,2571.1,2570.9,0.38887]
[1724938301253,3.21364294,2571.1,2570.4,4.0368]
[1724938301554,0.38888,2570.9,2570.7,0.38889]
[1724938301755,3.21364294,2571.1,2570.5,0.38893]
[1724938301756,0.3889,2570.8,2570.5,0.38893]
[1724938302059,0.38886,2571.0,2570.8,0.38888]
[1724938302254,0.38888,2570.8,2570.6,0.3889]
[1724938302454,0.38893,2570.5,2570.3,0.38895]
[1724938302657,0.38893,2570.5,2570.4,0.38894]
[1724938302857,3.21364294,2571.1,2570.1,4.86288]
[1724938303065,0.38888,2570.9,2570.7,0.38889]
[1724938303263,3.60249294,2571.1,2570.9,0.38886]
[1724938303458,3.21364294,2571.1,2570.9,0.38886]
[1724938303655,3.60249294,2571.1,2570.9,0.38886]
[1724938303856,3.60249294,2571.1,2570.5,4.59163]
[1724938303857,0.38887,2571.0,2570.8,0.38887]
[1724938304256,3.21364294,2571.1,2570.9,0.38887]
[1724938304257,3.60249294,2571.1,2570.9,0.38887]
[1724938304562,3.60249294,2571.1,2571.0,0.38885]
[1724938304757,0.38885,2571.0,2570.8,0.00584294]
[1724938304962,0.38887,2570.9,2570.8,0.00584294]
[1724938305170,5.43892395,2570.9,2570.8,0.00584294]
[1724938305357,4.46675395,2570.9,2570.8,0.00584294]
[1724938305661,5.43892395,2570.9,2570.8,0.00584294]
[1724938306057,16.30069395,2570.9,2570.8,2.94e-06]
[1724938306262,0.97244,2570.2,2569.7,0.4082]
[1724938306462,0.97231,2570.6,2569.8,0.97259]
[1724938306668,0.38895,2570.4,2570.3,0.38896]
[1724938306866,3.2078,2570.7,2570.1,0.97248]
[1724938307063,0.38894,2570.5,2570.3,0.38895]
[1724938307258,0.38894,2570.5,2570.3,3.59675]
[1724938307478,0.38894,2570.5,2570.4,0.38894]
[1724938307765,4.97875854,2570.6,2570.4,0.38894]
[1724938307964,0.38893,2570.5,2570.4,0.38894]
[1724938308353,0.79152,2570.6,2570.5,0.38893]
[1724938308561,0.4026,2570.6,2570.5,0.38893]
[1724938308756,3.2078,2571.0,2570.8,0.38887]
[1724938308964,3.2078,2571.0,2570.9,0.38887]
[1724938309167,0.00584294,2571.1,2571.0,0.38885]
[1724938309378,4.49,2572.0,2571.0,0.38885]
[1724938309379,3.2078,2572.1,2571.0,6.97214]
[1724938309668,3.2078,2572.1,2571.1,0.8234]
[1724938309669,0.38877,2571.6,2571.1,0.8234]
[1724938309863,3.2078,2571.5,2571.1,0.3964]
[1724938310064,7.55212623,2571.5,2570.7,0.427]
[1724938310365,0.97198,2571.4,2570.7,0.8234]
[1724938310573,0.4025,2571.3,2570.8,0.38888]
[1724938310869,0.38886,2571.0,2570.7,0.8234]
[1724938311081,4.6468524,2571.3,2570.6,3.2078]
[1724938311082,5.0860524,2571.3,2570.6,3.2078]
[1724938311365,0.38893,2570.5,2570.1,0.00584294]
[1724938311557,0.38892,2570.6,2570.4,0.38894]
[1724938311764,0.38889,2570.8,2570.6,0.38891]
[1724938311968,0.3889,2570.7,2570.5,0.38892]
[1724938312160,3.2078,2570.9,2570.4,0.4096]
[1724938312364,0.38889,2570.8,2570.4,0.4096]
[1724938312565,0.8417,2571.3,2570.9,0.38886]
[1724938312873,0.8417,2571.3,2570.8,0.38887]
[1724938312874,4.0495,2571.3,2570.8,0.38887]
[1724938313168,0.38883,2571.2,2570.5,4.8895]
[1724938313474,1.23052,2571.3,2571.0,0.38885]
[1724938313664,0.38883,2571.2,2570.9,0.38886]
[1724938314066,0.38883,2571.2,2571.0,0.38885]
[1724938314665,0.38883,2571.2,2570.9,0.38886]
[1724938314862,4.0495,2571.3,2570.8,0.38887]
[1724938315065,0.38886,2571.0,2570.4,0.4096]
[1724938315568,4.07643319,2571.2,2570.4,0.4096]
[1724938315569,0.38888,2570.9,2570.4,0.4096]
[1724938315765,0.38885,2571.1,2570.8,0.38887]
[1724938315971,0.38885,2571.1,2570.5,4.49]
[1724938316168,4.39833527,2571.2,2571.1,0.38884]
[1724938316368,0.8417,2571.3,2571.1,0.38884]
[1724938316571,1.23051,2571.3,2571.1,0.38884]
[1724938317064,0.00584294,2571.4,2570.9,3.2078]
[1724938317270,0.00584294,2571.4,2571.0,4.886]
[1724938317673,0.00584294,2571.4,2571.3,0.38881]
[1724938317970,0.39463294,2571.4,2571.1,0.38882]
[1724938318170,0.38881,2571.3,2571.0,0.78484]
[1724938318471,0.00584294,2571.4,2571.0,0.396]
[1724938318681,0.38881,2571.3,2571.1,0.38883]
[1724938318877,0.39464294,2571.4,2571.1,0.38883]
[1724938319181,0.00584294,2571.4,2571.3,0.38881]
[1724938319375,0.39463294,2571.4,2571.2,0.38881]
[1724938319677,0.00584294,2571.4,2571.3,0.38881]
[1724938320077,0.39463294,2571.4,2571.2,0.38881]
[1724938320575,0.39463294,2571.4,2571.0,0.396]
[1724938320576,0.00584294,2571.4,2570.9,3.2078]
[1724938320769,1.21541,2571.3,2571.1,0.38883]
[1724938320975,0.00584294,2571.4,2570.9,3.2078]
[1724938321173,0.00584294,2571.4,2571.3,0.38881]
[1724938321676,0.00584294,2571.4,2571.3,4.27761]
[1724938322277,0.97205,2571.3,2570.9,3.2078]
[1724938322506,0.97205,2571.3,2570.8,5.1649]
[1724938322507,0.4053,2571.3,2570.8,5.1649]
[1724938322778,0.4053,2571.3,2571.1,0.38884]
[1724938322971,0.4053,2571.3,2570.8,5.1649]
[1724938322972,0.4053,2571.3,2571.0,0.38884]
[1724938323170,0.79411,2571.3,2571.1,0.38882]
[1724938323382,0.38883,2571.2,2571.0,0.38885]
[1724938323677,0.38887,2570.9,2570.8,5.12488]
[1724938323877,0.38886,2571.0,2570.8,5.12488]
[1724938324280,1.38616,2571.2,2570.8,5.12487]
[1724938324281,0.38887,2570.9,2570.8,5.12487]
[1724938324583,1.38616,2571.2,2570.8,5.12487]
[1724938324881,0.38886,2571.0,2570.8,5.12487]
[1724938325075,0.38887,2570.9,2570.8,4.736]
[1724938325382,3.6131,2571.3,2570.8,4.736]
[1724938325673,0.00584294,2571.4,2571.3,0.38881]
[1724938326681,0.97173,2572.1,2571.3,4.27761]
[1724938326880,0.97173,2572.1,2571.4,0.4238]
[1724938326881,0.38873,2571.8,2571.4,0.4238]
[1724938327085,4.13466259,2572.0,2571.8,0.38872]
[1724938327276,0.4076,2572.2,2571.8,3.2078]
[1724938327481,0.4076,2572.2,2571.9,0.38871]
[1724938327683,0.38869,2572.1,2571.8,0.38872]
[1724938327979,0.38869,2572.1,2571.8,0.39456294]
[1724938328172,0.79628,2572.2,2571.8,0.39456294]
[1724938328374,0.79628,2572.2,2571.9,0.38871]
[1724938328776,0.00385707,2572.3,2572.1,0.38868]
[1724938328978,0.00385707,2572.3,2572.0,0.3887]
[1724938329277,0.39251707,2572.3,2572.0,0.3887]
[1724938329479,0.00385707,2572.3,2572.0,0.3887]
[1724938330068,0.00385707,2572.3,2572.1,0.38868]
[1724938330274,0.00385707,2572.3,2571.9,0.38871]
[1724938330480,0.00385707,2572.3,2571.8,3.60236294]
[1724938330481,0.39252707,2572.3,2571.8,3.60236294]
[1724938330783,0.39252707,2572.3,2571.9,0.38871]
[1724938330981,3.2078,2572.2,2571.8,3.21364294]
[1724938331278,0.3887,2572.1,2571.8,3.21364294]
[1724938331681,4.59433566,2572.2,2571.8,3.21364294]
[1724938331682,0.3887,2572.0,2571.8,3.21364294]
[1724938331871,4.59433566,2572.2,2571.8,3.21364294]
[1724938332179,0.00385707,2572.3,2571.8,3.21364294]
[1724938332377,0.00385707,2572.3,2572.0,0.38869]
[1724938332881,0.38868,2572.2,2571.9,0.38871]
[1724938333080,0.00385707,2572.3,2571.9,0.38871]
[1724938333278,0.00385707,2572.3,2571.8,3.60236294]
[1724938333474,0.38867,2572.2,2571.8,3.60236294]
[1724938333675,0.00385707,2572.3,2571.8,3.21364294]
[1724938333877,0.39251707,2572.3,2572.0,0.3887]
[1724938334481,0.00385707,2572.3,2571.8,3.21364294]
[1724938335080,0.00385707,2572.3,2572.2,0.38867]
[1724938335977,3.2078,2572.8,2572.2,7.0958]
[1724938335978,0.4056,2572.8,2572.2,7.0958]
[1724938336280,0.4056,2572.8,2572.5,0.38862]
[1724938336281,4.78072858,2572.7,2572.5,0.38862]
[1724938336584,1.78521,2573.0,2572.3,1.2622]
[1724938336585,0.8138,2573.0,2572.6,0.38861]
[1724938336773,0.38859,2572.8,2572.6,0.38861]
[1724938336975,4.41527436,2572.9,2572.3,1.2622]
[1724938337180,4.41527436,2572.9,2572.5,3.2078]
[1724938337378,0.8053,2573.3,2572.5,3.2078]
[1724938337676,0.38857,2572.9,2572.7,0.38859]
[1724938337880,0.38859,2572.8,2572.5,3.59641]
[1724938338080,4.45617081,2573.2,2572.7,0.38859]
[1724938338286,1.77659,2573.3,2572.7,0.38859]
[1724938338483,4.50578185,2573.2,2572.5,3.2078]
[1724938338679,4.50578185,2573.2,2572.3,1.2622]
[1724938338680,4.50578185,2573.2,2573.0,0.38855]
[1724938338878,0.8053,2573.3,2573.0,4.49]
[1724938339083,0.8053,2573.3,2573.0,4.87855]
[1724938339282,0.8053,2573.3,2573.0,0.38855]
[1724938339491,0.3885,2573.4,2573.0,0.80795]
[1724938339685,0.4127,2573.5,2573.0,0.4194]
[1724938339880,0.80118,2573.5,2573.1,0.38853]
[1724938340189,0.80118,2573.5,2573.0,0.4194]
[1724938340190,0.38852,2573.2,2572.8,0.38857]
[1724938340402,3.2078,2573.3,2572.6,4.0158]
[1724938340689,5.20129816,2573.1,2572.7,0.38859]
[1724938340879,4.40665816,2573.2,2572.6,44.4272]
[1724938341085,4.16298213,2573.4,2573.2,0.38852]
[1724938341285,0.4127,2573.5,2573.2,0.38852]
[1724938341591,4.39519264,2573.4,2573.2,0.38852]
[1724938341900,4.39519264,2573.4,2573.0,0.00583147]
[1724938341901,0.38851,2573.3,2573.0,0.00583147]
[1724938342083,4.39519264,2573.4,2573.0,0.00583147]
[1724938342387,0.38852,2573.2,2573.0,0.00583147]
[1724938342592,0.79461,2573.3,2573.0,0.00583147]
[1724938342992,0.38852,2573.2,2573.0,0.00583147]
[1724938343190,0.79461,2573.3,2573.0,0.00583147]
[1724938343385,0.38852,2573.2,2573.0,0.00583147]
[1724938343587,0.79461,2573.3,2573.0,0.00583147]
[1724938343897,0.80118,2573.5,2573.1,0.38852]
[1724938344088,0.38849,2573.4,2573.1,0.38852]
[1724938344287,5.02477633,2573.4,2573.0,0.39437147]
[1724938344589,5.02477633,2573.4,2573.0,0.00583147]
[1724938344590,5.02478633,2573.4,2573.0,0.00583147]
[1724938344894,0.3885,2573.3,2573.0,0.39437147]
[1724938345288,5.02478633,2573.4,2573.1,0.38853]
[1724938345688,0.38851,2573.3,2573.0,0.39437147]
[1724938346895,4.59378633,2573.4,2573.1,0.38853]
[1724938347092,4.59378633,2573.4,2573.0,0.00583147]
[1724938347293,0.4127,2573.5,2573.3,0.3885]
[1724938347490,0.4127,2573.5,2573.2,3.2078]
[1724938347688,0.4127,2573.5,2573.4,0.38849]
[1724938349087,0.4127,2573.5,2573.3,0.79359]
[1724938349299,0.4127,2573.5,2573.0,4.49583147]
[1724938349490,0.38851,2573.3,2573.1,0.38853]
[1724938350394,0.38853,2573.1,2573.0,0.00583147]
[1724938352198,0.79173,2573.2,2573.0,0.39438147]
[1724938352514,0.38852,2573.2,2573.0,0.00583147]
[1724938352703,0.38852,2573.2,2573.0,0.39437147]
[1724938354004,0.38852,2573.2,2573.1,0.38853]
[1724938354202,0.38852,2573.2,2573.0,0.39437147]
[1724938354711,0.38852,2573.2,2573.0,0.00583147]
[1724938355092,0.38852,2573.2,2573.0,0.39437147]
[1724938355403,0.4046,2573.4,2573.0,0.00583147]
[1724938355404,0.38853,2573.1,2573.0,0.00583147]
[1724938355601,1.35987,2573.1,2573.0,0.00583147]
[1724938356106,13.54824552,2573.1,2573.0,0.00583147]
[1724938356295,0.38862,2572.6,2572.3,0.4183]
[1724938356495,0.97141,2573.0,2572.3,0.4183]
[1724938356496,0.38863,2572.5,2572.3,0.4183]
[1724938356704,0.97147,2572.8,2572.4,0.38863]
[1724938356997,0.38862,2572.5,2572.4,0.38863]
[1724938357193,0.38862,2572.6,2572.3,0.4183]
[1724938357506,0.38861,2572.6,2572.5,0.38862]
[1724938357808,0.39439324,2572.7,2572.6,0.38861]
[1724938357999,0.39439324,2572.7,2572.5,0.38861]
[1724938358200,0.39439324,2572.7,2572.3,0.4183]
[1724938358201,0.39439324,2572.7,2572.6,0.38861]
[1724938358697,0.38861,2572.6,2572.5,0.38862]
[1724938358901,0.39439324,2572.7,2572.6,0.38861]
[1724938359104,0.00579324,2572.7,2572.6,0.38861]
[1724938359304,0.00579324,2572.7,2572.6,4.27581]
[1724938360097,0.38863,2572.5,2572.4,0.38864]
[1724938360291,3.89299324,2572.7,2572.5,0.38862]
[1724938360292,0.4165,2572.6,2572.5,0.38862]
[1724938360591,0.39439324,2572.7,2572.6,0.38861]
[1724938360795,0.38862,2572.6,2572.5,0.38862]
[1724938361004,0.38864,2572.4,2572.3,0.80695]
[1724938361208,0.38864,2572.4,2572.3,0.38865]
[1724938361908,0.78553,2572.5,2572.2,4.29313147]
[1724938362107,0.3969,2572.5,2572.4,0.38864]
[1724938362407,0.39440324,2572.7,2572.6,0.38861]
[1724938362408,0.00579324,2572.7,2572.6,0.38861]
[1724938362804,0.00579324,2572.7,2572.6,4.70091]
[1724938363294,0.00579324,2572.7,2572.6,5.67244]
[1724938363701,0.00579324,2572.7,2572.6,4.70091]
[1724938364307,0.00579324,2572.7,2572.6,0.38861]
[1724938364609,0.00579324,2572.7,2572.4,0.38863]
[1724938364911,1.61460324,2572.7,2572.5,0.38862]
[1724938365102,1.61460324,2572.7,2572.4,0.38863]
[1724938365103,1.22599324,2572.7,2572.4,0.38863]
[1724938365303,5.40529324,2572.7,2572.4,0.38863]
[1724938365495,0.38862,2572.6,2572.2,7.10063147]
[1724938365701,0.38862,2572.5,2572.2,7.10063147]
[1724938365896,0.38862,2572.6,2572.2,7.10063147]
[1724938366102,0.38862,2572.6,2572.4,0.38863]
[1724938366303,0.38862,2572.5,2572.4,0.38863]
[1724938366601,0.38864,2572.4,2572.2,7.48929147]
[1724938366801,0.97155,2572.6,2572.2,3.89283147]
[1724938367002,5.41864466,2572.6,2572.2,4.28150147]
[1724938367209,0.38865,2572.3,2572.2,3.89283147]
[1724938368609,4.27665,2572.3,2572.2,0.00583147]
[1724938369009,0.38865,2572.3,2572.2,0.00583147]
[1724938369306,1.22599324,2572.7,2572.2,3.89383147]
[1724938369612,0.38865,2572.4,2572.2,0.39449147]
[1724938370012,1.22599324,2572.7,2572.2,3.89303147]
[1724938370210,1.22599324,2572.7,2572.6,0.38861]
[1724938370401,0.82029324,2572.7,2572.6,0.38861]
[1724938370605,0.00579324,2572.7,2572.6,0.38861]
[1724938370910,0.00579324,2572.7,2572.6,6.21887]
[1724938371212,0.4293,2573.2,2573.1,0.38853]
[1724938371604,3.2078,2573.3,2573.2,0.38852]
[1724938371799,3.2078,2573.3,2573.1,0.38853]
[1724938372003,3.2078,2573.3,2572.6,5.16253]
[1724938372004,0.38854,2573.1,2572.6,5.16253]
[1724938372206,0.38855,2573.0,2572.9,0.38855]
[1724938372402,4.17907,2573.3,2572.6,5.16253]
[1724938372403,3.2078,2573.3,2572.6,4.191]
[1724938372604,0.38856,2573.0,2572.8,0.38857]
[1724938372810,0.38856,2572.9,2572.6,4.191]
[1724938373006,0.3941,2572.9,2572.6,4.191]
[1724938373208,0.38859,2572.7,2572.6,4.191]
[1724938373604,0.79369,2572.8,2572.7,0.38859]
[1724938373816,0.38859,2572.7,2572.6,4.5796]
[1724938374112,0.4051,2572.8,2572.6,4.5796]
[1724938374302,0.4051,2572.8,2572.7,0.38859]
[1724938374506,3.2078,2573.0,2572.9,0.38856]
[1724938374706,0.38859,2572.7,2572.6,4.191]
[1724938374906,1.36008,2572.7,2572.6,4.191]
[1724938375113,4.27579,2572.7,2572.6,4.191]
[1724938375409,4.27579,2572.7,2572.2,0.00583147]
[1724938375410,13.5262,2572.7,2572.2,0.00583147]
[1724938375613,0.38865,2572.3,2572.2,0.39449147]
[1724938375815,0.38865,2572.3,2572.2,0.00583147]
[1724938376009,4.27665,2572.3,2572.2,0.00583147]
[1724938376409,4.27665,2572.3,2571.8,3.2078]
[1724938376410,14.0668074,2572.3,2571.8,3.2078]
[1724938376618,0.38874,2571.8,2571.4,8.4058]
[1724938376911,1.21285,2571.7,2571.5,0.41210653]
[1724938377115,5.3916574,2571.7,2571.4,5.198]
[1724938377317,0.8241,2571.7,2571.5,0.80099833]
[1724938377510,0.38876,2571.6,2571.3,0.39462147]
[1724938377715,0.38878,2571.6,2571.3,0.00583147]
[1724938377908,4.32170727,2571.5,2571.3,0.39463147]
[1724938378104,4.32170727,2571.5,2571.4,0.38879]
[1724938378518,4.32170727,2571.5,2571.3,0.39463147]
[1724938379014,0.38879,2571.4,2571.3,0.00583147]
[1724938379208,4.71049727,2571.5,2571.3,0.00583147]
[1724938379405,0.38879,2571.4,2571.3,0.00583147]
[1724938379620,4.71049727,2571.5,2571.3,0.00583147]